fUSD/lending_fUSD_20260521
["ID","MTS","AMOUNT","RATE_DAILY","PERIOD"]
[422769458,1779372660000,-950.10505502,0.00035879,2]
[422769459,1779372660000,-300.0,0.00035879,2]
[422769457,1779372660000,-300.0,0.00035879,2]
[422769461,1779372660000,-300.0,0.00035879,2]
[422769462,1779372660000,-344.3669113,0.00035879,2]
[422769460,1779372660000,-1914.65651191,0.00035879,2]
[422769465,1779372660000,-300.0,0.00035879,2]
[422769453,1779372660000,-300.0,0.00035879,2]
[422769474,1779372660000,-300.0,0.00035879,2]
[422769466,1779372660000,-300.0,0.00035879,2]
[422769478,1779372660000,-300.0,0.00035879,2]
[422769472,1779372660000,-300.0,0.00035879,2]
[422769476,1779372660000,-300.0,0.00035879,2]
[422769471,1779372660000,-865.43414506,0.00035879,2]
[422769488,1779372660000,-300.0,0.00035879,2]
[422769473,1779372660000,-1793.68058292,0.00035879,2]
[422769470,1779372660000,-300.0,0.00035879,2]
[422769468,1779372660000,-1148.536727,0.00035879,2]
[422769477,1779372660000,-594.66445863,0.00035879,2]
[422769467,1779372660000,-300.0,0.00035879,2]
[422769469,1779372660000,-309.94485294,0.00035879,2]
[422769475,1779372660000,-300.0,0.00035879,2]
[422769532,1779372661000,-300.0,0.00035879,2]
[422769547,1779372661000,-1148.536727,0.00035879,2]
[422769542,1779372661000,-527.49020474,0.00035879,2]
[422769544,1779372661000,-300.0,0.00035879,2]
[422769553,1779372661000,-300.0,0.00035879,2]
[422769545,1779372661000,-300.0,0.00035879,2]
[422769555,1779372661000,-300.0,0.00035879,2]
[422769554,1779372661000,-300.0,0.00035879,2]
[422769546,1779372661000,-300.0,0.00035879,2]
[422769548,1779372661000,-309.94485294,0.00035879,2]
[422769543,1779372661000,-300.0,0.00035879,2]
[422769567,1779372661000,-300.0,0.00035879,2]
[422769552,1779372661000,-1793.68058292,0.00035879,2]
[422769551,1779372661000,-300.0,0.00035879,2]
[422769550,1779372661000,-865.43414506,0.00035879,2]
[422769557,1779372661000,-300.0,0.00035879,2]
[422769568,1779372661000,-300.0,0.00035879,2]
[422769556,1779372661000,-594.66445863,0.00035879,2]
[422769559,1779372661000,-464.37545391,0.00035879,2]
[422769561,1779372661000,-577.9311531,0.00035879,2]
[422769562,1779372661000,-300.0,0.00035879,2]
[422769558,1779372661000,-300.0,0.00035879,2]
[422769530,1779372661000,-300.0,0.00035879,2]
[422769549,1779372661000,-300.0,0.00035879,2]
[422769533,1779372661000,-300.0,0.00035879,2]
[422769524,1779372661000,-1068.14516571,0.00035879,2]
[422769541,1779372661000,-344.3669113,0.00035879,2]
[422769563,1779372661000,-452.42284885,0.00035879,2]
[422769512,1779372661000,-300.0,0.00035879,2]
[422769513,1779372661000,-300.0,0.00035879,2]
[422769514,1779372661000,-493.26474603,0.00035879,2]
[422769518,1779372661000,-300.0,0.00035879,2]
[422769519,1779372661000,-300.0,0.00035879,2]
[422769517,1779372661000,-300.0,0.00035879,2]
[422769522,1779372661000,-300.0,0.00035879,2]
[422769521,1779372661000,-300.0,0.00035879,2]
[422769520,1779372661000,-605.16150131,0.00035879,2]
[422769516,1779372661000,-300.0,0.00035879,2]
[422769531,1779372661000,-300.91943096,0.00035879,2]
[422769523,1779372661000,-528.36570693,0.00035879,2]
[422769526,1779372661000,-726.89406178,0.00035879,2]
[422769525,1779372661000,-894.42951685,0.00035879,2]
[422769529,1779372661000,-300.0,0.00035879,2]
[422769528,1779372661000,-302.14136475,0.00035879,2]
[422769534,1779372661000,-300.0,0.00035879,2]
[422769540,1779372661000,-300.0,0.00035879,2]
[422769538,1779372661000,-300.0,0.00035879,2]
[422769536,1779372661000,-300.0,0.00035879,2]
[422769537,1779372661000,-950.10505502,0.00035879,2]
[422769539,1779372661000,-1914.65651191,0.00035879,2]
[422769535,1779372661000,-300.0,0.00035879,2]
[422769527,1779372661000,-300.0,0.00035879,2]
[422769566,1779372661000,-300.0,0.00035879,2]
[422769515,1779372661000,-300.0,0.00035879,2]
[422769565,1779372661000,-300.0,0.00035879,2]
[422769594,1779372661000,-493.26474603,0.00035879,2]
[422769596,1779372661000,-300.0,0.00035879,2]
[422769598,1779372661000,-300.0,0.00035879,2]
[422769595,1779372661000,-300.0,0.00035879,2]
[422769599,1779372661000,-605.16150131,0.00035879,2]
[422769601,1779372661000,-300.0,0.00035879,2]
[422769609,1779372661000,-300.0,0.00035879,2]
[422769604,1779372661000,-1068.14516571,0.00035879,2]
[422769602,1779372661000,-300.0,0.00035879,2]
[422769606,1779372661000,-726.89406178,0.00035879,2]
[422769610,1779372661000,-300.0,0.00035879,2]
[422769590,1779372661000,-300.0,0.00035879,2]
[422769612,1779372661000,-300.0,0.00035879,2]
[422769603,1779372661000,-528.36570693,0.00035879,2]
[422769608,1779372661000,-302.14136475,0.00035879,2]
[422769611,1779372661000,-300.91943096,0.00035879,2]
[422769605,1779372661000,-894.42951685,0.00035879,2]
[422769613,1779372661000,-300.0,0.00035879,2]
[422769614,1779372661000,-300.0,0.00035879,2]
[422769615,1779372661000,-300.0,0.00035879,2]
[422769617,1779372661000,-950.10505502,0.00035879,2]
[422769616,1779372661000,-300.0,0.00035879,2]
[422769618,1779372661000,-300.0,0.00035879,2]
[422769619,1779372661000,-1914.65651191,0.00035879,2]
[422769607,1779372661000,-300.0,0.00035879,2]
[422769600,1779372661000,-300.0,0.00035879,2]
[422769564,1779372661000,-300.0,0.00035879,2]
[422769593,1779372661000,-300.0,0.00035879,2]
[422769597,1779372661000,-300.0,0.00035879,2]
[422769560,1779372661000,-300.0,0.00035879,2]
[422769569,1779372661000,-300.0,0.00035879,2]
[422769571,1779372661000,-310.20141915,0.00035879,2]
[422769572,1779372661000,-300.0,0.00035879,2]
[422769570,1779372661000,-484.65488813,0.00035879,2]
[422769573,1779372661000,-300.0,0.00035879,2]
[422769576,1779372661000,-300.0,0.00035879,2]
[422769578,1779372661000,-300.0,0.00035879,2]
[422769574,1779372661000,-300.0,0.00035879,2]
[422769577,1779372661000,-300.0,0.00035879,2]
[422769579,1779372661000,-1096.01525,0.00035879,2]
[422769575,1779372661000,-300.0,0.00035879,2]
[422769581,1779372661000,-300.0,0.00035879,2]
[422769582,1779372661000,-300.0,0.00035879,2]
[422769589,1779372661000,-300.0,0.00035879,2]
[422769591,1779372661000,-300.0,0.00035879,2]
[422769586,1779372661000,-300.0,0.00035879,2]
[422769588,1779372661000,-300.0,0.00035879,2]
[422769592,1779372661000,-300.0,0.00035879,2]
[422769580,1779372661000,-300.0,0.00035879,2]
[422769584,1779372661000,-300.0,0.00035879,2]
[422769583,1779372661000,-300.0,0.00035879,2]
[422769585,1779372661000,-300.0,0.00035879,2]
[422769587,1779372661000,-300.0,0.00035879,2]
[422769650,1779372662000,-484.65488813,0.00035879,2]
[422769649,1779372662000,-300.0,0.00035879,2]
[422769657,1779372662000,-157.8547863,0.00035929,2]
[422769655,1779372662000,-350.0,0.0003589,5]
[422769651,1779372662000,-310.20141915,0.00035879,2]
[422769654,1779372662000,-300.0,0.00035879,2]
[422769659,1779372662000,-10644.7843,0.00035976,2]
[422769660,1779372662000,-150.0,0.00035981,2]
[422769656,1779372662000,-429.0,0.0003591,30]
[422769661,1779372662000,-152.0,0.00035996,11]
[422769652,1779372662000,-300.0,0.00035879,2]
[422769672,1779372662000,-2522.1659603,0.00036076,7]
[422769675,1779372662000,-3130.88780278,0.00036076,7]
[422769667,1779372662000,-1341.59,0.00036,7]
[422769662,1779372662000,-324.36855396,0.00036,3]
[422769664,1779372662000,-10000.0,0.00036,14]
[422769665,1779372662000,-200.0,0.00036,14]
[422769671,1779372662000,-500.0,0.00036075,120]
[422769666,1779372662000,-2396.42,0.00036,30]
[422769670,1779372662000,-719.98416701,0.00036048,2]
[422769668,1779372662000,-400.0,0.00036048,2]
[422769669,1779372662000,-400.0,0.00036048,2]
[422769674,1779372662000,-1309.80591982,0.00036076,7]
[422769673,1779372662000,-1226.40272223,0.00036076,7]
[422769653,1779372662000,-300.0,0.00035879,2]
[422769663,1779372662000,-14360.495227,0.00036,10]
[422769648,1779372662000,-300.0,0.00035879,2]
[422769630,1779372662000,-865.43414506,0.00035879,2]
[422769646,1779372662000,-300.0,0.00035879,2]
[422769623,1779372662000,-300.0,0.00035879,2]
[422769622,1779372662000,-527.49020474,0.00035879,2]
[422769621,1779372662000,-344.3669113,0.00035879,2]
[422769620,1779372662000,-300.0,0.00035879,2]
[422769627,1779372662000,-1148.536727,0.00035879,2]
[422769625,1779372662000,-300.0,0.00035879,2]
[422769629,1779372662000,-300.0,0.00035879,2]
[422769634,1779372662000,-300.0,0.00035879,2]
[422769631,1779372662000,-300.0,0.00035879,2]
[422769628,1779372662000,-309.94485294,0.00035879,2]
[422769632,1779372662000,-1793.68058292,0.00035879,2]
[422769635,1779372662000,-300.0,0.00035879,2]
[422769644,1779372662000,-300.0,0.00035879,2]
[422769624,1779372662000,-300.0,0.00035879,2]
[422769626,1779372662000,-300.0,0.00035879,2]
[422769676,1779372662000,-1758.46504313,0.00036076,7]
[422769640,1779372662000,-300.0,0.00035879,2]
[422769636,1779372662000,-594.66445863,0.00035879,2]
[422769638,1779372662000,-300.0,0.00035879,2]
[422769639,1779372662000,-464.37545391,0.00035879,2]
[422769647,1779372662000,-300.0,0.00035879,2]
[422769642,1779372662000,-300.0,0.00035879,2]
[422769637,1779372662000,-300.0,0.00035879,2]
[422769645,1779372662000,-300.0,0.00035879,2]
[422769641,1779372662000,-577.9311531,0.00035879,2]
[422769643,1779372662000,-452.42284885,0.00035879,2]
[422769633,1779372662000,-300.0,0.00035879,2]
[422769677,1779372662000,-3140.16510505,0.00036076,7]
[422769658,1779372662000,-479.82443964,0.00035976,2]
[422769680,1779372662000,-1291.85053502,0.00036085,7]
[422769714,1779372662000,-2460.3983,0.00036485,2]
[422769711,1779372662000,-1353.80205155,0.00036455,7]
[422769717,1779372662000,-10000.0,0.000365,14]
[422769715,1779372662000,-150.0,0.000365,2]
[422769709,1779372662000,-1345.30951912,0.00036455,7]
[422769710,1779372662000,-2167.08853503,0.00036455,7]
[422769712,1779372662000,-157.8547863,0.00036477,2]
[422769716,1779372662000,-203.26,0.000365,14]
[422769718,1779372662000,-200.0,0.00036549,5]
[422769720,1779372662000,-4491.61660116,0.00036571,2]
[422769719,1779372662000,-200.0,0.00036549,5]
[422769723,1779372662000,-150.0,0.00036712,60]
[422769728,1779372662000,-2538.32,0.00036772,30]
[422769726,1779372662000,-157.8547863,0.00036751,2]
[422769725,1779372662000,-10644.7843,0.00036739,2]
[422769722,1779372662000,-184.8,0.0003665,30]
[422769724,1779372662000,-1283.68,0.00036714,10]
[422769729,1779372662000,-1640.06329178,0.000368,2]
[422769727,1779372662000,-16250.89,0.00036761,10]
[422769733,1779372662000,-5000.0,0.00036813,2]
[422769730,1779372662000,-13788.0,0.000368,6]
[422769731,1779372662000,-5000.0,0.000368,2]
[422769732,1779372662000,-5000.0,0.00036813,2]
[422769735,1779372662000,-5000.0,0.00036813,2]
[422769734,1779372662000,-5000.0,0.00036813,2]
[422769678,1779372662000,-376.953,0.00036082,2]
[422769736,1779372662000,-350.0,0.00036849,5]
[422769713,1779372662000,-10644.7843,0.00036485,2]
[422769707,1779372662000,-1592.84295061,0.00036455,2]
[422769721,1779372662000,-10644.7843,0.00036612,2]
[422769705,1779372662000,-1420.56528004,0.00036455,7]
[422769679,1779372662000,-1228.65142453,0.00036085,7]
[422769708,1779372662000,-2364.33598807,0.00036455,7]
[422769683,1779372662000,-2538.32,0.00036094,14]
[422769682,1779372662000,-1341.70300003,0.00036085,7]
[422769689,1779372662000,-5000.0,0.00036176,2]
[422769688,1779372662000,-5000.0,0.00036176,2]
[422769693,1779372662000,-1000.0,0.00036209,110]
[422769694,1779372662000,-10644.7843,0.00036231,2]
[422769686,1779372662000,-2766.3,0.00036153,30]
[422769692,1779372662000,-157.8547863,0.00036203,2]
[422769695,1779372662000,-1660.77,0.00036261,2]
[422769691,1779372662000,-151.0,0.000362,5]
[422769687,1779372662000,-5018.69844292,0.00036176,2]
[422769690,1779372662000,-151.0,0.000362,7]
[422769681,1779372662000,-1325.59493477,0.00036085,7]
[422769685,1779372662000,-1216.45365357,0.00036122,7]
[422769684,1779372662000,-10644.7843,0.00036104,2]
[422769699,1779372662000,-2538.32,0.00036433,14]
[422769700,1779372662000,-1323.69865337,0.00036455,7]
[422769701,1779372662000,-1369.76725798,0.00036455,7]
[422769697,1779372662000,-150.0,0.00036399,60]
[422769698,1779372662000,-211663.0,0.000364,30]
[422769706,1779372662000,-2026.65289987,0.00036455,7]
[422769703,1779372662000,-1351.21278178,0.00036455,7]
[422769696,1779372662000,-10644.7843,0.00036358,2]
[422769702,1779372662000,-1326.85483771,0.00036455,7]
[422769704,1779372662000,-1376.56042927,0.00036455,7]
[422769779,1779372663000,-5000.0,0.00037213,2]
[422769777,1779372663000,-5000.0,0.00037213,2]
[422769768,1779372663000,-203359.26921604,0.000371,2]
[422769776,1779372663000,-5000.0,0.00037213,2]
[422769774,1779372663000,-5000.0,0.00037213,2]
[422769769,1779372663000,-31053.76691618,0.000371,2]
[422769771,1779372663000,-10644.7843,0.00037121,2]
[422769770,1779372663000,-2538.32,0.0003711,30]
[422769772,1779372663000,-152.0,0.00037153,12]
[422769782,1779372663000,-10644.7843,0.00037248,2]
[422769773,1779372663000,-5000.0,0.00037213,2]
[422769775,1779372663000,-5000.0,0.00037213,2]
[422769790,1779372663000,-372.02812331,0.000374,30]
[422769780,1779372663000,-5000.0,0.00037213,2]
[422769783,1779372663000,-157.8547863,0.00037299,2]
[422769791,1779372663000,-372.02812329,0.000374,30]
[422769781,1779372663000,-1000.0,0.00037234,16]
[422769784,1779372663000,-1000.0,0.00037313,96]
[422769787,1779372663000,-4081.45164778,0.000374,30]
[422769789,1779372663000,-4081.45164776,0.000374,30]
[422769786,1779372663000,-2460.3984,0.00037375,2]
[422769788,1779372663000,-4081.45164776,0.000374,30]
[422769793,1779372663000,-150.0,0.00037443,60]
[422769804,1779372663000,-174.67002351,0.00037557,2]
[422769792,1779372663000,-372.02812329,0.000374,30]
[422769803,1779372663000,-905.14868674,0.00037526,120]
[422769778,1779372663000,-5000.0,0.00037213,2]
[422769785,1779372663000,-10644.7856,0.00037375,2]
[422769767,1779372663000,-500.0,0.00037099,120]
[422769741,1779372663000,-1000.0,0.00036949,34]
[422769762,1779372663000,-150.0,0.00037,2]
[422769794,1779372663000,-2538.32,0.00037449,30]
[422769742,1779372663000,-165.2,0.00036954,14]
[422769739,1779372663000,-189.04804382,0.00036889,5]
[422769737,1779372663000,-1114.58,0.00036865,10]
[422769738,1779372663000,-10644.7843,0.00036866,2]
[422769740,1779372663000,-4900.0,0.000369,13]
[422769754,1779372663000,-710.0,0.00037,2]
[422769744,1779372663000,-10644.7843,0.00036994,2]
[422769743,1779372663000,-150.0,0.00036986,60]
[422769751,1779372663000,-4500.0,0.00037,2]
[422769750,1779372663000,-168.70383234,0.00037,2]
[422769749,1779372663000,-365.0,0.00037,2]
[422769746,1779372663000,-500.0,0.00036999,120]
[422769765,1779372663000,-157.8547863,0.00037025,2]
[422769745,1779372663000,-500.0,0.00036999,120]
[422769752,1779372663000,-88667.7071026,0.00037,6]
[422769748,1779372663000,-500.0,0.00036999,120]
[422769753,1779372663000,-742339.85095517,0.00037,20]
[422769757,1779372663000,-355.40046689,0.00037,2]
[422769755,1779372663000,-2440.0,0.00037,2]
[422769758,1779372663000,-1706.0299477,0.00037,20]
[422769759,1779372663000,-1300.0,0.00037,3]
[422769756,1779372663000,-169.64,0.00037,3]
[422769766,1779372663000,-2150.43051842,0.00037068,2]
[422769760,1779372663000,-9375.44,0.00037,14]
[422769761,1779372663000,-1341.59,0.00037,7]
[422769764,1779372663000,-2697.89406282,0.00037,2]
[422769763,1779372663000,-181.512,0.00037,2]
[422769747,1779372663000,-500.0,0.00036999,120]
[422769801,1779372663000,-500.0,0.00037509,26]
[422769841,1779372663000,-1000.0,0.000378,7]
[422769799,1779372663000,-500.0,0.00037509,26]
[422769831,1779372663000,-2538.32,0.00037788,30]
[422769834,1779372663000,-1000.0,0.000378,7]
[422769832,1779372663000,-1000.0,0.000378,7]
[422769835,1779372663000,-1000.0,0.000378,7]
[422769843,1779372663000,-1000.0,0.000378,7]
[422769842,1779372663000,-1000.0,0.000378,7]
[422769836,1779372663000,-1000.0,0.000378,7]
[422769838,1779372663000,-1000.0,0.000378,7]
[422769839,1779372663000,-160.0,0.000378,7]
[422769837,1779372663000,-1000.0,0.000378,7]
[422769840,1779372663000,-1000.0,0.000378,7]
[422769845,1779372663000,-1000.0,0.000378,7]
[422769855,1779372663000,-1000.0,0.000378,7]
[422769833,1779372663000,-1000.0,0.000378,7]
[422769844,1779372663000,-1000.0,0.000378,7]
[422769850,1779372663000,-1000.0,0.000378,7]
[422769848,1779372663000,-1000.0,0.000378,7]
[422769851,1779372663000,-1000.0,0.000378,7]
[422769847,1779372663000,-1000.0,0.000378,7]
[422769853,1779372663000,-1000.0,0.000378,7]
[422769852,1779372663000,-1000.0,0.000378,7]
[422769854,1779372663000,-1000.0,0.000378,7]
[422769857,1779372663000,-1000.0,0.000378,7]
[422769856,1779372663000,-1000.0,0.000378,7]
[422769858,1779372663000,-1000.0,0.000378,7]
[422769859,1779372663000,-1000.0,0.000378,7]
[422769860,1779372663000,-1000.0,0.000378,7]
[422769800,1779372663000,-500.0,0.00037509,26]
[422769846,1779372663000,-1000.0,0.000378,7]
[422769826,1779372663000,-400.0,0.00037615,2]
[422769849,1779372663000,-1000.0,0.000378,7]
[422769827,1779372663000,-1463.15606877,0.00037616,2]
[422769828,1779372663000,-202.81826729,0.00037619,2]
[422769796,1779372663000,-436.85422571,0.00037492,2]
[422769797,1779372663000,-1000.0,0.000375,30]
[422769798,1779372663000,-829.74934647,0.00037503,2]
[422769802,1779372663000,-494.46,0.00037509,26]
[422769805,1779372663000,-300.0,0.00037565,2]
[422769808,1779372663000,-300.0,0.00037565,2]
[422769817,1779372663000,-500.0,0.00037612,120]
[422769806,1779372663000,-300.0,0.00037565,2]
[422769816,1779372663000,-211663.0,0.000376,30]
[422769809,1779372663000,-300.0,0.00037565,2]
[422769810,1779372663000,-300.0,0.00037565,2]
[422769807,1779372663000,-300.0,0.00037565,2]
[422769814,1779372663000,-4413.22856006,0.0003759,2]
[422769795,1779372663000,-1426.12,0.00037491,10]
[422769813,1779372663000,-157.8547863,0.00037573,2]
[422769812,1779372663000,-9830.84822187,0.00037566,2]
[422769825,1779372663000,-400.0,0.00037615,2]
[422769818,1779372663000,-5000.0,0.00037613,2]
[422769829,1779372663000,-2000.0,0.00037636,7]
[422769820,1779372663000,-5000.0,0.00037613,2]
[422769821,1779372663000,-5000.0,0.00037613,2]
[422769824,1779372663000,-5000.0,0.00037613,2]
[422769823,1779372663000,-5000.0,0.00037613,2]
[422769830,1779372663000,-150.0,0.0003778,2]
[422769819,1779372663000,-5000.0,0.00037613,2]
[422769815,1779372663000,-200.0,0.00037595,6]
[422769811,1779372663000,-312.57,0.00037565,2]
[422769822,1779372663000,-5000.0,0.00037613,2]
[422769900,1779372664000,-1000.0,0.000378,7]
[422769901,1779372664000,-1000.0,0.000378,7]
[422769898,1779372664000,-1000.0,0.000378,7]
[422769902,1779372664000,-1000.0,0.000378,7]
[422769893,1779372664000,-1000.0,0.000378,7]
[422769899,1779372664000,-1000.0,0.000378,7]
[422769896,1779372664000,-1000.0,0.000378,7]
[422769895,1779372664000,-1000.0,0.000378,7]
[422769897,1779372664000,-1000.0,0.000378,7]
[422769906,1779372664000,-1000.0,0.000378,7]
[422769894,1779372664000,-1000.0,0.000378,7]
[422769903,1779372664000,-1000.0,0.000378,7]
[422769905,1779372664000,-1000.0,0.000378,7]
[422769912,1779372664000,-1000.0,0.000378,7]
[422769908,1779372664000,-1000.0,0.000378,7]
[422769913,1779372664000,-1000.0,0.000378,7]
[422769909,1779372664000,-1000.0,0.000378,7]
[422769911,1779372664000,-1000.0,0.000378,7]
[422769910,1779372664000,-1000.0,0.000378,7]
[422769914,1779372664000,-1000.0,0.000378,7]
[422769915,1779372664000,-1000.0,0.000378,7]
[422769917,1779372664000,-1000.0,0.000378,7]
[422769919,1779372664000,-196338.0,0.000378,2]
[422769927,1779372664000,-150.94327542,0.00037889,7]
[422769928,1779372664000,-900.0,0.000379,13]
[422769904,1779372664000,-1000.0,0.000378,7]
[422769918,1779372664000,-1000.0,0.000378,7]
[422769907,1779372664000,-1000.0,0.000378,7]
[422769886,1779372664000,-1000.0,0.000378,7]
[422769873,1779372664000,-1000.0,0.000378,7]
[422769889,1779372664000,-1000.0,0.000378,7]
[422769916,1779372664000,-1000.0,0.000378,7]
[422769864,1779372664000,-1000.0,0.000378,7]
[422769862,1779372664000,-1000.0,0.000378,7]
[422769866,1779372664000,-1000.0,0.000378,7]
[422769865,1779372664000,-1000.0,0.000378,7]
[422769863,1779372664000,-1000.0,0.000378,7]
[422769861,1779372664000,-1000.0,0.000378,7]
[422769869,1779372664000,-1000.0,0.000378,7]
[422769878,1779372664000,-1000.0,0.000378,7]
[422769872,1779372664000,-1000.0,0.000378,7]
[422769870,1779372664000,-1000.0,0.000378,7]
[422769879,1779372664000,-1000.0,0.000378,7]
[422769871,1779372664000,-875.0,0.000378,7]
[422769891,1779372664000,-1000.0,0.000378,7]
[422769868,1779372664000,-1000.0,0.000378,7]
[422769875,1779372664000,-1000.0,0.000378,7]
[422769874,1779372664000,-1000.0,0.000378,7]
[422769877,1779372664000,-1000.0,0.000378,7]
[422769880,1779372664000,-1000.0,0.000378,7]
[422769882,1779372664000,-1000.0,0.000378,7]
[422769881,1779372664000,-1000.0,0.000378,7]
[422769890,1779372664000,-1000.0,0.000378,7]
[422769887,1779372664000,-1000.0,0.000378,7]
[422769888,1779372664000,-1000.0,0.000378,7]
[422769885,1779372664000,-1000.0,0.000378,7]
[422769884,1779372664000,-1000.0,0.000378,7]
[422769883,1779372664000,-1000.0,0.000378,7]
[422769892,1779372664000,-1000.0,0.000378,7]
[422769876,1779372664000,-1000.0,0.000378,7]
[422769867,1779372664000,-1000.0,0.000378,7]
[422769920,1779372664000,-158.53,0.00037808,60]
[422769924,1779372664000,-6322.04,0.00037844,2]
[422769957,1779372664000,-2766.3,0.00038125,30]
[422769961,1779372664000,-669.5612,0.00038266,30]
[422769966,1779372664000,-500.0,0.00038355,120]
[422769963,1779372664000,-770.0,0.000383,2]
[422769960,1779372664000,-165.2,0.00038163,30]
[422769967,1779372664000,-500.0,0.00038356,2]
[422769958,1779372664000,-2538.32,0.00038127,30]
[422769968,1779372664000,-500.0,0.00038356,2]
[422769965,1779372664000,-152.0,0.0003831,13]
[422769964,1779372664000,-929.0,0.000383,2]
[422769962,1779372664000,-520.0,0.000383,2]
[422769970,1779372664000,-500.0,0.00038356,2]
[422769971,1779372664000,-500.0,0.00038356,2]
[422769959,1779372664000,-151.12800541,0.00038143,2]
[422769969,1779372664000,-500.0,0.00038356,2]
[422769972,1779372664000,-500.0,0.00038356,2]
[422769974,1779372664000,-500.0,0.00038356,2]
[422769973,1779372664000,-500.0,0.00038356,2]
[422769977,1779372664000,-500.0,0.00038356,2]
[422769979,1779372664000,-500.0,0.00038356,2]
[422769976,1779372664000,-500.0,0.00038356,2]
[422769975,1779372664000,-500.0,0.00038356,2]
[422769978,1779372664000,-500.0,0.00038356,2]
[422769981,1779372664000,-500.0,0.00038356,2]
[422769984,1779372664000,-258.45932119,0.00038356,2]
[422769983,1779372664000,-500.0,0.00038356,2]
[422769982,1779372664000,-500.0,0.00038356,2]
[422769921,1779372664000,-350.0,0.00037808,5]
[422769980,1779372664000,-500.0,0.00038356,2]
[422769956,1779372664000,-355.585714,0.00038123,40]
[422769985,1779372664000,-500.0,0.00038356,2]
[422769948,1779372664000,-5000.0,0.00038013,2]
[422769955,1779372664000,-157.8547863,0.00038121,2]
[422769923,1779372664000,-1000.0,0.00037844,2]
[422769925,1779372664000,-157.8547863,0.00037847,2]
[422769922,1779372664000,-1000.0,0.00037839,86]
[422769929,1779372664000,-5032.10205284,0.00037909,2]
[422769930,1779372664000,-5000.0,0.00037909,2]
[422769932,1779372664000,-5000.0,0.00037909,2]
[422769931,1779372664000,-5000.0,0.00037909,2]
[422769934,1779372664000,-223.49678951,0.0003799,2]
[422769940,1779372664000,-227.74609169,0.00038,2]
[422769933,1779372664000,-651.35169486,0.00037969,120]
[422769938,1779372664000,-234476.77585279,0.00038,2]
[422769939,1779372664000,-41334.04924561,0.00038,10]
[422769937,1779372664000,-222.24861001,0.00038,7]
[422769926,1779372664000,-205.85022116,0.0003788,2]
[422769936,1779372664000,-1000.0,0.00038,2]
[422769935,1779372664000,-500.0,0.00037999,120]
[422769950,1779372664000,-5000.0,0.00038013,2]
[422769954,1779372664000,-882.22504314,0.000381,33]
[422769952,1779372664000,-1000.0,0.00038099,33]
[422769944,1779372664000,-1341.59,0.00038,7]
[422769945,1779372664000,-2300.08,0.00038,30]
[422769951,1779372664000,-5000.0,0.00038013,2]
[422769949,1779372664000,-5000.0,0.00038013,2]
[422769946,1779372664000,-5000.0,0.00038013,2]
[422769947,1779372664000,-5000.0,0.00038013,2]
[422769943,1779372664000,-4220.62471283,0.00038,2]
[422769953,1779372664000,-362.050909,0.000381,40]
[422769942,1779372664000,-726.0,0.00038,5]
[422769941,1779372664000,-584.23763248,0.00038,5]
[422770024,1779372665000,-2062.46093358,0.00038356,2]
[422770025,1779372665000,-500.0,0.00038356,2]
[422770021,1779372665000,-2062.26,0.00038356,2]
[422770022,1779372665000,-2062.26,0.00038356,2]